bitfinex/quotes_ETHUSD_20240717
["timestamp","ask_amount","ask_price","bid_price","bid_amount"]
[1721228944991,2.88809,3462.5,3461.7,2.2891]
[1721228945189,2.88809,3462.5,3461.8,0.36164743]
[1721228945523,2.88833,3462.2,3461.6,2.455]
[1721228945661,2.88817,3462.4,3461.6,2.455]
[1721228945662,2.88817,3462.4,3461.6,5.34381]
[1721228945852,2.4416,3462.9,3462.0,5.3435]
[1721228945853,0.03761737,3462.1,3462.0,5.3435]
[1721228946258,5.32935,3462.9,3462.0,5.34349]
[1721228946502,0.03764202,3462.1,3462.0,5.34349]
[1721228946808,2.88798,3462.7,3462.0,3.448215]
[1721228947096,0.03772409,3462.1,3462.0,3.448215]
[1721228947298,2.88801,3462.6,3462.0,0.993215]
[1721228947504,0.03772409,3462.1,3461.6,2.455]
[1721228947674,0.03772409,3462.1,3461.0,4.7]
[1721228947675,2.88856,3462.0,3461.2,2.455]
[1721228947858,2.88856,3462.0,3460.9,2.34281]
[1721228947859,2.92593715,3462.0,3461.1,2.88925]
[1721228948634,2.92593715,3462.0,3460.8,2.455]
[1721228948635,2.92588715,3462.0,3460.8,5.34449]
[1721228948905,2.92588715,3462.0,3461.3,2.455]
[1721228948906,0.03737715,3462.0,3461.3,2.455]
[1721228949200,2.88855,3462.0,3461.3,5.34408]
[1721228949409,2.88889,3461.6,3460.9,2.455]
[1721228949596,2.88889,3461.6,3460.9,6.048847]
[1721228949917,0.03750283,3461.5,3461.0,2.88927]
[1721228950259,2.88867,3461.8,3460.9,3.159467]
[1721228950501,2.88867,3461.8,3460.9,2.455]
[1721228950502,0.03741505,3461.4,3460.9,2.455]
[1721228950699,2.88889,3461.6,3460.9,5.3444]
[1721228950906,2.88867,3461.8,3460.9,5.3444]
[1721228950907,0.03765435,3461.3,3460.9,5.3444]
[1721228951071,2.88861,3461.9,3461.2,2.88917]
[1721228951262,2.88848,3462.1,3461.3,2.455]
[1721228951466,2.88859,3461.9,3461.3,2.455]
[1721228952059,2.88835,3462.2,3461.3,5.34407]
[1721228952060,2.88844,3462.1,3461.3,5.34407]
[1721228952266,2.88835,3462.2,3461.3,5.34407]
[1721228952483,3.0,3462.1,3461.3,5.34407]
[1721228952877,2.88856,3462.0,3461.3,2.455]
[1721228953076,2.88883,3461.6,3460.9,2.455]
[1721228953328,2.88856,3462.0,3461.2,2.8891]
[1721228953465,2.88856,3462.0,3460.9,4.689462]
[1721228953657,2.88836,3462.2,3461.3,2.88907]
[1721228953863,2.8885,3462.0,3461.3,2.88907]
[1721228954112,5.88819,3462.4,3461.6,2.88883]
[1721228954272,2.88819,3462.4,3461.7,2.88873]
[1721228954472,2.888,3462.6,3461.8,2.88866]
[1721228955085,2.88792,3462.7,3461.9,2.88852]
[1721228955290,2.88792,3462.7,3462.0,2.88848]
[1721228955911,2.8878,3462.9,3462.1,2.88841]
[1721228956265,2.88783,3462.8,3462.1,2.88841]
[1721228956483,2.88783,3462.8,3462.1,3.466103]
[1721228956680,2.88776,3462.9,3462.2,2.88832]
[1721228957882,2.88785,3462.8,3462.1,2.88841]
[1721228958375,2.88785,3462.8,3461.7,2.277756]
[1721228958376,2.8881,3462.5,3461.7,0.577756]
[1721228958824,2.88825,3462.4,3461.7,0.577756]
[1721228959033,2.88825,3462.4,3461.6,2.88883]
[1721228959211,2.88826,3462.3,3461.5,2.8889]
[1721228959397,2.88834,3462.2,3461.5,2.8889]
[1721228959588,0.03800144,3462.2,3461.7,2.88869]
[1721228959805,2.88811,3462.5,3461.8,0.288869]
[1721228960172,2.88793,3462.7,3461.8,0.288869]
[1721228960173,0.03806814,3462.4,3461.8,0.288869]
[1721228960378,0.03806814,3462.4,3461.9,2.88853]
[1721228960577,2.88793,3462.7,3462.0,2.88849]
[1721228960816,0.03803728,3462.3,3462.0,2.88849]
[1721228960977,5.77593,3462.7,3462.1,0.6065889]
[1721228961178,0.03800642,3462.2,3462.0,2.88849]
[1721228961475,2.88793,3462.7,3462.0,2.88849]
[1721228961681,2.88778,3462.9,3462.1,2.88841]
[1721228961905,2.8876,3463.1,3462.2,2.88831]
[1721228962105,3.0,3463.0,3462.4,2.88816]
[1721228962304,2.2971,3463.3,3462.4,3.346976]
[1721228962532,5.18452,3463.3,3462.6,2.88795]
[1721228962694,3.0,3463.2,3462.6,2.88795]
[1721228963027,12.23,3463.8,3462.6,2.88795]
[1721228963028,2.3583,3463.7,3462.8,2.88775]
[1721228963236,2.88725,3463.5,3462.8,3.71082]
[1721228963522,2.88724,3463.6,3462.5,2.455]
[1721228963523,2.88734,3463.4,3462.7,2.88786]
[1721228963889,2.88734,3463.4,3462.8,2.88783]
[1721228964235,2.88742,3463.3,3462.5,2.88808]
[1721228964394,2.88759,3463.1,3462.4,2.88815]
[1721228964724,2.88755,3463.2,3462.5,2.88808]
[1721228965103,2.3583,3463.7,3462.5,2.88808]
[1721228965300,2.88725,3463.5,3462.7,2.88791]
[1721228965504,8.24542,3463.7,3462.7,2.88791]
[1721228965505,2.88734,3463.4,3462.8,2.88783]
[1721228966415,2.88705,3463.8,3462.9,2.88774]
[1721228966597,2.88694,3463.9,3462.9,2.88774]
[1721228966942,3.0,3463.8,3462.9,2.88774]
[1721228967235,2.88715,3463.7,3463.0,2.88765]
[1721228967440,3.0,3463.6,3463.0,2.88765]
[1721228967596,3.0,3463.6,3462.8,2.88783]
[1721228967597,5.88718,3463.6,3462.8,2.88783]
[1721228968016,5.88718,3463.6,3463.0,2.88766]
[1721228968513,3.0,3463.6,3463.0,2.88766]
[1721228968870,2.88695,3463.9,3463.1,2.88757]
[1721228968871,3.0,3463.7,3463.1,2.88757]
[1721228969009,2.88678,3464.1,3463.4,2.88733]
[1721228969555,2.3778,3464.2,3463.5,0.05773854]
[1721228969755,2.88659,3464.3,3463.5,2.88725]
[1721228970046,2.88678,3464.1,3463.3,2.455]
[1721228970331,5.77361,3464.1,3463.3,2.455]
[1721228970641,2.88678,3464.1,3463.4,2.88727]
[1721228971301,2.88661,3464.3,3463.5,2.88724]
[1721228971501,2.88675,3464.1,3463.5,2.88724]
[1721228971822,2.88675,3464.1,3463.4,2.88733]
[1721228972140,2.887,3463.8,3463.2,5.34249]
[1721228972319,2.88694,3463.9,3463.2,5.34249]
[1721228972995,2.88678,3464.1,3463.3,2.88739]
[1721228973193,3.0,3464.2,3463.5,2.88721]
[1721228973432,5.88668,3464.2,3463.5,2.88721]
[1721228973809,3.0,3464.2,3463.5,5.77438]
[1721228974450,3.0,3464.2,3463.6,2.88716]
[1721228974735,5.88669,3464.2,3463.3,2.88738]
[1721228975048,5.88669,3464.2,3463.5,2.88724]
[1721228975258,5.88669,3464.2,3462.7,4.58791]
[1721228975259,2.88719,3463.6,3462.7,4.58791]
[1721228975563,5.27098,3464.1,3462.3,2.88821]
[1721228975771,2.88703,3463.8,3463.0,2.8876]
[1721228976065,0.03516163,3463.7,3463.1,2.88757]
[1721228976215,2.92229163,3463.7,3463.0,2.88765]
[1721228976560,2.92229163,3463.7,3462.8,2.88775]
[1721228976718,0.03516163,3463.7,3462.6,4.155]
[1721228976915,2.88711,3463.7,3462.6,7.04298]
[1721228977121,2.88733,3463.4,3462.6,7.04298]
[1721228977343,0.03512026,3463.3,3462.6,7.04298]
[1721228977656,2.92255026,3463.3,3462.6,7.04298]
[1721228977843,2.92255026,3463.3,3462.6,8.066088]
[1721228978650,2.88752,3463.2,3462.3,0.3]
[1721228978857,2.88752,3463.2,3462.4,2.88808]
[1721228979058,2.92273051,3463.1,3462.2,5.3433]
[1721228979256,2.88772,3463.0,3462.3,2.88823]
[1721228979559,0.03511162,3462.9,3462.4,2.88815]
[1721228979781,0.03511162,3462.9,3462.5,1.7]
[1721228980060,2.88714,3463.7,3462.8,2.88783]
[1721228980223,2.88714,3463.7,3462.9,2.88773]
[1721228980421,2.88698,3463.9,3463.0,2.88766]
[1721228980617,3.0,3463.6,3463.1,2.88758]
[1721228980853,3.0,3463.7,3463.1,2.88758]
[1721228981627,3.0,3463.7,3463.0,2.88766]
[1721228981953,3.0,3463.7,3463.0,0.458766]
[1721228982144,5.88709,3463.7,3463.0,0.458766]
[1721228982340,5.88709,3463.7,3462.7,2.88786]
[1721228982544,2.88743,3463.3,3462.7,2.88791]
[1721228982955,2.88743,3463.3,3462.5,2.88803]
[1721228983161,2.88732,3463.5,3462.7,2.8879]
[1721228983475,2.88732,3463.5,3462.8,2.88777]
[1721228983648,2.88732,3463.5,3462.8,3.635342]
[1721228984249,2.88732,3463.5,3462.6,2.88795]
[1721228984250,2.88732,3463.5,3462.7,2.88789]
[1721228984464,5.88712,3463.7,3462.9,2.88774]
[1721228985276,5.88712,3463.7,3462.9,4.58774]
[1721228985783,0.03516345,3463.6,3463.0,2.8876]
[1721228985975,0.03516345,3463.6,3462.9,1.7]
[1721228986359,0.03516345,3463.6,3463.0,2.88761]
[1721228986685,0.03516345,3463.6,3462.9,1.7]
[1721228986852,0.03516345,3463.6,3462.9,4.58772]
[1721228987336,2.92235345,3463.6,3462.9,4.58772]
[1721228987745,2.92235345,3463.6,3462.9,4.58769]
[1721228987943,0.03516345,3463.6,3463.0,2.88762]
[1721228988143,0.03516345,3463.6,3463.0,3.635151]
[1721228988385,0.03516345,3463.6,3463.1,2.88757]
[1721228988541,0.03516345,3463.6,3463.5,2.88725]
[1721228988743,2.88633,3464.6,3463.8,2.88692]
[1721228988950,1.29405531,3464.5,3463.8,2.88692]
[1721228989156,1.25860841,3464.4,3463.8,2.88692]
[1721228989442,0.03538527,3464.3,3463.8,2.88692]
[1721228989870,2.88642,3464.5,3463.8,2.88692]
[1721228990135,1.29396327,3464.4,3463.9,2.88689]
[1721228990494,1.29396327,3464.4,3464.3,2.88658]
[1721228990495,0.03541609,3464.4,3464.3,2.88658]
[1721228990655,2.88602,3465.0,3464.3,2.88658]
[1721228990988,2.88602,3465.0,3464.1,2.455]
[1721228990989,2.8863,3464.7,3464.1,2.455]
[1721228991192,2.8863,3464.7,3464.1,5.34174]
[1721228991398,0.03554632,3464.6,3464.1,5.34174]
[1721228991741,2.88611,3464.9,3464.1,5.34174]
[1721228991742,2.88625,3464.7,3464.1,5.34174]
[1721228992097,0.03554632,3464.6,3464.1,5.34174]
[1721228992942,0.03554632,3464.6,3464.0,2.88683]
[1721228993387,0.03554632,3464.6,3464.0,5.77358]
[1721228993694,0.03554632,3464.6,3464.1,2.88673]
[1721228993995,2.88617,3464.8,3464.2,2.88666]
[1721228994143,0.03553193,3464.5,3464.2,2.88666]
[1721228994339,2.88617,3464.8,3464.2,2.88666]
[1721228994543,0.03559356,3464.7,3464.2,2.88666]
[1721228994803,0.03559356,3464.7,3464.3,2.88651]
[1721228994948,0.03559356,3464.7,3464.5,2.88641]
[1721228995282,5.22948,3465.2,3464.3,2.88651]
[1721228995283,0.03556658,3464.6,3464.3,2.88651]
[1721228995449,0.03556658,3464.6,3464.4,2.88649]
[1721228995644,3.0,3465.1,3464.5,2.88641]
[1721228996075,3.0,3465.1,3464.3,4.58651]
[1721228996256,5.88593,3465.1,3464.3,2.88651]
[1721228996457,5.88593,3465.1,3464.4,2.88649]
[1721228997147,5.88593,3465.1,3464.5,2.8864]
[1721228997541,3.0,3465.1,3464.7,2.88624]
[1721228997789,3.0,3465.4,3464.9,2.88606]
[1721228997992,0.60315831,3465.6,3464.9,2.88606]
[1721228997993,3.0,3465.6,3464.9,2.88606]
[1721228998201,1.25817368,3465.5,3464.9,2.88606]
[1721228999308,2.3023,3465.7,3465.0,2.88598]
[1721228999620,5.18772,3465.7,3465.0,2.88598]
[1721229000220,5.18777,3465.7,3465.0,2.88598]
[1721229000731,0.60315831,3466.0,3465.0,2.88598]
[1721229000732,0.60315831,3466.0,3465.2,2.88583]
[1721229000893,2.88494,3466.3,3465.3,2.5127027]
[1721229001097,4.14293629,3466.2,3465.3,2.455]
[1721229001295,1.25789237,3466.1,3465.6,2.88549]
[1721229001526,2.88488,3466.4,3465.6,2.88549]
[1721229001697,5.26928,3466.5,3465.8,2.88533]
[1721229001698,1.25787559,3466.3,3465.8,2.88533]
[1721229001907,2.88459,3466.7,3465.8,2.88533]
[1721229002227,1.25782596,3466.6,3465.8,2.88533]
[1721229002425,1.25782596,3466.6,3465.6,2.88549]
[1721229002426,1.25782596,3466.6,3465.6,2.88543]
[1721229002592,2.8848,3466.5,3465.6,2.88543]
[1721229002794,2.8848,3466.5,3465.7,2.88539]
[1721229003008,2.88453,3466.8,3465.3,4.155]
[1721229003310,2.8854,3465.8,3464.9,2.88603]
[1721229003518,2.8854,3465.8,3464.6,1.7]
[1721229003519,2.8854,3465.8,3465.2,2.88583]
[1721229003699,2.88517,3466.0,3465.3,2.88567]
[1721229004015,2.88517,3466.0,3465.0,2.886]
[1721229004016,2.88534,3465.8,3465.0,2.886]
[1721229004413,2.88542,3465.7,3464.9,5.34102]
[1721229004722,2.88542,3465.7,3465.1,2.8859]
[1721229004929,2.88542,3465.7,3464.9,2.455]
[1721229005133,2.88567,3465.4,3464.7,2.88619]
[1721229005285,2.88567,3465.4,3464.8,2.88616]
[1721229005909,2.92081103,3465.3,3464.5,2.455]
[1721229006113,2.88583,3465.2,3464.5,2.455]
[1721229006335,0.03496893,3465.2,3464.5,2.455]
[1721229006600,2.3888,3465.9,3464.9,2.455]
[1721229006809,2.3888,3465.9,3465.0,2.88598]
[1721229006810,5.27405,3465.9,3465.0,2.88598]
[1721229007091,3.03491441,3465.8,3465.1,2.88591]
[1721229007410,0.03491441,3465.8,3465.4,2.88564]
[1721229007788,5.18494,3466.4,3465.6,2.88548]
[1721229007789,2.88492,3466.3,3465.6,2.88548]
[1721229008112,0.03479957,3466.2,3465.6,2.88548]
[1721229008292,2.8847,3466.6,3465.6,2.88548]
[1721229008293,2.8847,3466.6,3465.7,4.5854]
[1721229008635,0.03458844,3466.1,3465.7,4.5854]
[1721229008836,2.8847,3466.6,3465.7,4.5854]
[1721229009131,2.88476,3466.5,3465.7,4.5854]
[1721229009292,5.88484,3466.4,3465.7,4.5854]
[1721229009490,5.91961919,3466.4,3465.7,4.5854]
[1721229009799,5.91961919,3466.4,3465.7,2.8854]
[1721229010185,5.91961919,3466.4,3465.5,2.88551]
[1721229010588,2.88506,3466.2,3465.4,2.88566]
[1721229010814,2.8854,3465.8,3464.9,4.58605]
[1721229010997,2.88523,3466.0,3465.2,2.88583]
[1721229011219,0.03471311,3465.7,3465.0,2.88592]
[1721229011400,2.88522,3466.0,3465.2,2.88582]
[1721229011611,2.88526,3465.9,3465.2,2.88582]
[1721229011795,2.88533,3465.8,3465.2,2.88582]
[1721229011987,2.88533,3465.8,3465.1,2.88591]
[1721229012193,0.03477485,3465.7,3465.1,2.88591]
[1721229012417,0.03477485,3465.7,3465.2,2.88583]
[1721229012631,2.92019485,3465.7,3464.9,1.758135]
[1721229012832,2.88551,3465.6,3464.9,2.88603]
[1721229013210,0.03469105,3465.5,3465.0,2.88599]
[1721229013409,0.03469105,3465.5,3465.0,3.696322]
[1721229013624,2.88542,3465.7,3465.0,3.696322]
[1721229013935,5.15655,3466.1,3465.4,2.88566]
[1721229014229,3.0346329,3466.0,3465.5,2.88558]
[1721229014431,3.0346329,3466.0,3465.5,3.632713]
[1721229014432,0.0346329,3466.0,3465.5,3.632713]
[1721229014629,0.0346329,3466.0,3465.7,2.8854]
[1721229014822,3.0,3466.4,3465.7,2.8854]
[1721229015200,0.03473703,3466.3,3465.7,4.5854]
[1721229015420,0.03473703,3466.3,3465.8,2.88531]
[1721229016023,5.344878,3467.0,3465.7,5.5648113]
[1721229016224,0.03495407,3466.2,3466.0,2.88515]
[1721229016434,0.150478,3467.0,3466.3,2.88484]
[1721229016628,0.150478,3467.0,3466.4,2.88483]
[1721229016836,0.03491837,3466.9,3466.4,2.88483]
[1721229017200,0.03491837,3466.9,3466.5,2.88472]
[1721229018006,0.03491837,3466.9,3466.6,2.88465]
[1721229018906,0.03491837,3466.9,3466.4,2.88483]
[1721229019246,0.03491837,3466.9,3466.0,2.8851]
[1721229019413,2.8845,3466.8,3466.0,2.8851]
[1721229019615,0.03491837,3466.9,3466.1,4.58507]
[1721229019616,2.91933837,3466.9,3466.1,4.58507]
[1721229019816,0.03571218,3466.7,3466.3,2.88484]
[1721229020128,0.03566196,3466.6,3466.3,2.88484]
[1721229020345,0.150478,3467.0,3466.4,2.88482]
[1721229020543,0.03558589,3466.5,3466.4,2.88482]
[1721229020747,0.150478,3467.0,3466.8,2.88449]
[1721229022035,0.150478,3467.0,3466.6,2.88461]
[1721229022236,0.150478,3467.0,3466.5,1.7]
[1721229022458,0.150478,3467.0,3466.5,4.743]
[1721229022674,0.150478,3467.0,3466.9,2.88442]
[1721229022675,0.14897404,3467.0,3466.9,2.88442]
[1721229022958,0.14897404,3467.0,3466.9,3.17862957]
[1721229023761,0.14897404,3467.0,3466.9,4.87862957]
[1721229024080,0.14897404,3467.0,3466.9,8.31304957]
[1721229024736,0.14897404,3467.0,3466.9,5.42862957]
[1721229025133,0.14897404,3467.0,3466.9,8.31304957]
[1721229025567,0.14897404,3467.0,3466.7,2.88454]
[1721229025730,0.14897404,3467.0,3466.9,4.58442]
[1721229027459,0.14897404,3467.0,3466.9,8.01884]
[1721229028836,0.14897404,3467.0,3466.9,5.13442]
[1721229029171,0.14897404,3467.0,3466.9,2.88442]
[1721229029374,0.14897404,3467.0,3466.8,2.88447]
[1721229029991,0.14897404,3467.0,3466.9,2.88442]
[1721229030270,0.14897404,3467.0,3466.8,2.88445]
[1721229030674,0.14897404,3467.0,3466.6,2.8846]
[1721229030984,0.14897404,3467.0,3466.8,2.88443]
[1721229031475,0.14897404,3467.0,3466.8,2.88449]
[1721229031770,0.14897404,3467.0,3466.9,2.88442]
[1721229032476,0.14897404,3467.0,3466.6,2.8846]
[1721229032681,0.14897404,3467.0,3466.5,1.7]
[1721229032834,3.03336404,3467.0,3466.2,2.88496]
[1721229033037,3.03336404,3467.0,3466.2,4.58496]
[1721229033550,3.03336404,3467.0,3466.4,2.88483]
[1721229033752,0.14897404,3467.0,3466.5,2.88468]
[1721229033966,0.14897404,3467.0,3466.4,2.88483]
[1721229033967,0.14897404,3467.0,3466.6,2.88466]
[1721229036068,0.06548581,3466.9,3466.6,2.88466]
[1721229036599,0.14897404,3467.0,3466.8,2.8845]
[1721229036764,0.065454,3466.9,3466.8,2.8845]
[1721229037300,0.36717709,3466.9,3466.8,5.76894]
[1721229037598,0.36717709,3466.9,3466.8,6.820134]
[1721229037954,0.30172309,3466.9,3466.8,6.820134]
[1721229038559,0.30172309,3466.9,3466.8,9.266134]
[1721229038960,0.30172309,3466.9,3466.8,15.302634]
[1721229039381,0.14897404,3467.0,3466.9,5.76884]
[1721229039603,0.14897404,3467.0,3466.9,8.3075374]
[1721229039798,0.14897404,3467.0,3466.9,14.2349574]
[1721229040314,0.14897404,3467.0,3466.9,17.2349574]
[1721229040657,5.24957,3468.7,3467.9,2.88355]
[1721229040986,0.06631253,3468.6,3468.2,2.88328]
[1721229041190,0.06631253,3468.6,3468.3,2.88321]
[1721229041512,5.24491,3469.2,3468.2,2.88328]
[1721229041659,0.06392796,3468.5,3468.2,2.88328]
[1721229041860,5.24491,3469.2,3468.4,2.88316]
[1721229042767,2.88259,3469.1,3468.4,2.88316]
[1721229043380,5.24493,3469.2,3468.4,2.88316]
[1721229043591,2.88266,3469.1,3468.4,2.88316]
[1721229043898,2.88268,3469.0,3468.4,2.88316]
[1721229044391,2.88268,3469.0,3468.3,2.88324]
[1721229044814,2.88268,3469.0,3468.3,2.88322]
[1721229044978,2.88272,3469.0,3468.0,5.32943]
[1721229045171,2.88291,3468.8,3468.0,2.88343]
[1721229045382,2.88291,3468.8,3468.1,2.8834]
[1721229045597,2.88272,3469.0,3468.3,2.88318]
[1721229045960,2.88272,3469.0,3468.2,2.88333]
[1721229046277,5.88222,3469.6,3467.3,2.88408]
[1721229046278,5.31541,3468.3,3467.3,2.88408]
[1721229046604,5.31541,3468.3,3467.6,2.88383]
[1721229047222,2.4321,3468.3,3467.6,2.88383]
[1721229047376,2.3905,3468.7,3468.0,2.88344]
[1721229047577,2.3905,3468.7,3468.1,2.8834]
[1721229048004,5.3905,3468.7,3468.1,2.8834]
[1721229048403,8.27343,3468.7,3468.1,2.8834]
[1721229049475,5.3905,3468.7,3468.1,2.8834]
[1721229049690,8.27344,3468.7,3468.1,2.8834]
[1721229049909,8.27344,3468.7,3467.9,5.32952]
[1721229050104,8.27344,3468.7,3467.9,2.88352]
[1721229050276,8.27344,3468.7,3468.0,2.88348]
[1721229051007,0.06415627,3468.6,3468.0,2.88348]
[1721229052278,0.06415627,3468.6,3468.2,2.88326]
[1721229052537,2.88271,3469.0,3468.3,2.88318]
[1721229052827,0.06422665,3468.9,3468.3,2.88318]
[1721229052988,0.06422665,3468.9,3468.1,2.88337]
[1721229052989,2.94703665,3468.9,3468.1,2.88337]
[1721229053188,2.94703665,3468.9,3468.2,2.88332]
[1721229053788,2.88284,3468.8,3468.2,2.88332]
[1721229054105,0.06419002,3468.7,3468.0,8.34633991]
[1721229054321,0.06419002,3468.7,3468.0,1.7]
[1721229054322,2.88307,3468.6,3468.0,1.7]
[1721229054739,0.06413026,3468.5,3468.0,1.7]
[1721229055031,2.4313,3469.2,3468.1,6.039]
[1721229055239,2.4313,3469.2,3468.5,1.7]
[1721229055527,2.4313,3469.2,3468.6,0.05764908]
[1721229055726,2.4313,3469.2,3468.5,4.58303]
[1721229055928,2.4313,3469.2,3468.6,2.88299]
[1721229056283,2.4313,3469.2,3468.7,2.88288]
[1721229056637,2.4313,3469.2,3468.8,2.88282]
[1721229056930,2.2819,3469.6,3468.9,0.05764642]
[1721229057101,2.2819,3469.6,3469.1,2.88258]
[1721229057488,2.4497,3470.0,3469.2,4.64008162]
[1721229057687,2.4497,3470.0,3469.5,2.446]
[1721229057953,2.4497,3470.0,3469.1,2.446]
[1721229057954,2.88199,3469.9,3469.1,2.446]
[1721229058142,2.88199,3469.9,3469.2,2.8825]
[1721229058143,2.88202,3469.8,3469.2,2.8825]
[1721229058801,2.88202,3469.8,3469.1,2.446]
[1721229059314,2.88202,3469.8,3469.2,2.88245]
[1721229059687,2.88202,3469.8,3469.1,2.446]
[1721229059895,2.8821,3469.7,3469.1,2.446]
[1721229060219,2.88224,3469.6,3469.1,2.446]
[1721229060522,2.88226,3469.5,3468.7,2.446]
[1721229060725,2.88226,3469.5,3468.8,2.88282]
[1721229061287,2.3454,3469.2,3468.3,5.32918]
[1721229061530,2.3454,3469.2,3468.3,2.446]
[1721229061784,2.3454,3469.2,3467.9,5.32954]
[1721229061903,2.88292,3468.7,3468.0,2.88348]
[1721229062293,2.88311,3468.5,3467.9,2.446]
[1721229062723,2.88318,3468.4,3467.7,2.88372]
[1721229063248,2.8835,3468.1,3467.1,2.446]
[1721229063417,2.88353,3468.0,3467.2,2.88416]
[1721229063618,2.88353,3468.0,3467.1,2.446]
[1721229064135,2.88371,3467.8,3467.1,2.446]
[1721229064453,5.3454,3468.6,3467.1,2.88424]
[1721229064601,2.88334,3468.2,3467.3,4.58408]
[1721229064926,2.88318,3468.4,3467.5,2.8839]
[1721229065099,5.88326,3468.3,3467.6,3.261]
[1721229065300,2.88326,3468.3,3467.6,3.261]
[1721229065558,2.8831,3468.5,3467.7,2.88375]
[1721229065749,3.0,3468.4,3467.7,2.88375]
[1721229065991,3.0,3468.4,3467.8,2.88366]
[1721229065992,3.05752161,3468.4,3467.8,2.88366]
[1721229066211,0.05752161,3468.4,3467.6,6.14479]
[1721229066431,2.94070161,3468.4,3467.6,6.14479]
[1721229067036,2.88344,3468.1,3467.2,2.88411]
[1721229067237,2.94072161,3468.4,3467.4,4.584]
[1721229067441,0.0574298,3468.0,3467.6,2.88377]
[1721229067639,2.88326,3468.3,3467.6,2.88377]
[1721229067845,0.0574173,3467.9,3467.6,2.88377]
[1721229068073,2.88326,3468.3,3467.6,2.88377]
[1721229068234,0.05744954,3467.8,3467.2,2.88416]
[1721229068426,2.88339,3468.2,3467.2,2.88416]
[1721229068754,0.05751811,3468.1,3467.7,2.88375]
[1721229069076,5.88319,3468.4,3467.7,2.88375]
[1721229069252,0.05759966,3468.0,3467.7,2.88375]
[1721229069441,5.88319,3468.4,3467.7,2.88375]
[1721229069637,0.05750615,3467.9,3467.7,2.88375]
[1721229069876,3.0,3468.4,3467.7,2.88375]
[1721229070031,0.05692318,3467.8,3467.7,2.88375]
[1721229070232,3.0,3468.4,3467.7,2.88375]
[1721229070432,0.05763342,3468.3,3467.7,2.88375]
[1721229071047,2.94089342,3468.3,3467.7,2.88375]
[1721229071254,0.05763342,3468.3,3467.7,2.88375]
[1721229072233,2.94090342,3468.3,3467.5,2.88391]
[1721229072433,2.8835,3468.0,3467.3,2.88406]
[1721229072738,0.05756157,3467.9,3467.4,2.884]
[1721229073576,0.05756157,3467.9,3466.9,3.34161415]
[1721229073577,0.05756157,3467.9,3467.2,2.8841]
[1721229074048,2.8837,3467.8,3467.0,2.88432]
[1721229074236,2.88376,3467.7,3467.0,2.88432]
[1721229074440,2.88376,3467.7,3466.9,0.29861415]
[1721229074441,2.884,3467.4,3466.9,0.29861415]
[1721229074860,0.05719644,3467.3,3466.9,0.29861415]
[1721229075588,2.94128644,3467.3,3466.9,0.29861415]
[1721229076433,0.05719644,3467.3,3466.9,0.29861415]
[1721229076647,2.88386,3467.6,3466.9,0.29861415]
[1721229076648,2.88402,3467.4,3466.9,0.29861415]
[1721229076857,0.05709232,3467.2,3466.9,0.29861415]
[1721229077063,2.88421,3467.2,3466.9,0.29861415]
[1721229077269,2.94110303,3467.1,3466.9,0.29861415]
[1721229077472,2.88433,3467.0,3466.4,2.88483]
[1721229077642,0.05684303,3467.1,3466.4,3.18373818]
[1721229077643,2.94111303,3467.1,3466.4,3.18373818]
[1721229077979,5.18544,3467.0,3466.4,0.29890818]
[1721229078197,2.8846,3466.7,3466.4,0.29890818]
[1721229078482,2.8846,3466.7,3466.0,2.88514]
[1721229078694,0.05704361,3466.6,3466.1,0.52263135]
[1721229079543,0.05704361,3466.6,3466.1,3.40771135]
[1721229080042,0.05704361,3466.6,3465.9,0.29889088]
[1721229080043,2.88483,3466.5,3465.9,0.29889088]
[1721229080244,2.8851,3466.1,3465.9,0.29889088]
[1721229080643,0.05672767,3466.0,3465.4,2.88564]
[1721229081264,2.88525,3465.9,3465.2,2.88578]
[1721229081462,2.88525,3465.9,3465.0,3.09327067]
[1721229081463,2.88535,3465.8,3465.0,2.93624067]
[1721229081661,2.88535,3465.8,3465.3,0.29886548]
[1721229081662,2.94200678,3465.8,3465.3,0.29886548]
[1721229082500,2.88546,3465.7,3465.3,0.29886548]
[1721229082662,2.88546,3465.7,3465.0,2.88599]
[1721229082858,0.05653141,3465.6,3465.0,2.88599]
[1721229083614,0.05653141,3465.6,3465.1,2.88591]
[1721229083903,2.88525,3465.9,3465.2,0.74719]
[1721229083904,2.88534,3465.8,3465.2,0.74719]
[1721229084120,0.05643247,3465.5,3465.2,0.74719]
[1721229084264,2.88542,3465.7,3465.2,0.74719]
[1721229084786,0.05649282,3465.6,3465.2,0.74719]
[1721229085383,0.05649282,3465.6,3465.3,0.36331]
[1721229085577,5.27631,3466.2,3465.3,3.24905]
[1721229085790,0.05644696,3465.5,3465.4,2.88565]
[1721229086104,2.88514,3466.1,3465.4,2.88565]
[1721229086409,0.05585964,3466.0,3465.4,2.88565]
[1721229086699,0.05585964,3466.0,3465.4,3.818639]
[1721229087204,0.05585964,3466.0,3465.6,2.88548]
[1721229087407,2.3084,3466.9,3465.9,2.88525]
[1721229087707,2.88467,3466.6,3465.9,2.88525]
[1721229087904,2.88458,3466.8,3465.9,3.707111]
[1721229088205,2.88461,3466.7,3466.0,2.88512]
[1721229088421,2.3084,3466.9,3465.6,2.448]
[1721229088580,2.88492,3466.3,3465.5,2.88553]
[1721229088779,2.88492,3466.3,3465.6,2.8855]
[1721229089015,2.88492,3466.3,3465.6,3.62213343]
[1721229089423,2.88486,3466.4,3465.7,2.8854]
[1721229089729,2.88469,3466.6,3465.8,2.88533]
[1721229090025,2.3084,3466.9,3465.6,3.18463343]